bitfinex/quotes_ETHUSD_20250925
["timestamp","ask_amount","ask_price","bid_price","bid_amount"]
[1758787219814,0.39033953,4018.9,4018.8,2.72030496]
[1758787220020,0.39033953,4018.9,4018.8,21.19930496]
[1758787220589,0.39033953,4018.9,4018.8,21.85980496]
[1758787220916,0.39033953,4018.9,4018.8,21.62780496]
[1758787221101,0.81883953,4018.9,4018.8,17.41680496]
[1758787221302,0.39033953,4018.9,4018.8,21.62780496]
[1758787221625,0.39033953,4018.9,4018.8,17.41680496]
[1758787221826,0.39033953,4018.9,4018.8,21.62680496]
[1758787222384,0.39033953,4018.9,4018.8,14.9285]
[1758787222917,0.39033953,4018.9,4018.8,17.22030496]
[1758787223116,0.39033953,4018.9,4018.8,18.40357534]
[1758787223289,0.39033953,4018.9,4018.8,18.943]
[1758787223489,0.39033953,4018.9,4018.8,18.711]
[1758787223920,0.39033953,4018.9,4018.8,21.19930496]
[1758787224618,0.39133953,4018.9,4018.8,21.19930496]
[1758787226988,0.39133953,4018.9,4018.8,18.711]
[1758787227184,0.81983953,4018.9,4018.8,14.5]
[1758787227497,0.39133953,4018.9,4018.8,22.18330899]
[1758787227692,0.39053953,4018.9,4018.8,22.18330899]
[1758787228117,0.39053953,4018.9,4018.8,22.57464852]
[1758787228614,0.39053953,4018.9,4018.8,22.12264852]
[1758787230013,0.39053953,4018.9,4018.8,22.57464852]
[1758787230930,0.001,4018.9,4018.8,23.38664852]
[1758787231231,0.001,4018.9,4018.8,23.51064852]
[1758787232308,0.001,4018.9,4018.8,19.30264852]
[1758787232505,0.001,4018.9,4018.8,25.58464852]
[1758787232900,0.001,4018.9,4018.8,23.51064852]
[1758787233105,0.001,4018.9,4018.8,25.58464852]
[1758787233734,0.001,4018.9,4018.8,18.85064852]
[1758787233938,0.001,4018.9,4018.8,22.59264852]
[1758787237404,0.001,4018.9,4018.8,26.38464852]
[1758787237800,0.001,4020.5,4019.8,3.27968595]
[1758787237998,0.001,4020.5,4019.8,8.09330779]
[1758787238230,0.001,4020.5,4019.8,8.75243094]
[1758787238449,1e-08,4019.9,4019.8,26.35217771]
[1758787240235,1e-08,4019.9,4019.8,28.42517771]
[1758787243216,1e-08,4019.9,4019.8,22.14017771]
[1758787243429,1e-08,4019.9,4019.8,26.34917771]
[1758787243751,1e-08,4019.9,4019.8,28.42217771]
[1758787243951,1e-08,4019.9,4019.8,28.54617771]
[1758787244249,0.001,4020.5,4020.2,3.27943843]
[1758787244463,0.001,4020.5,4020.2,11.51113399]
[1758787244679,0.001,4020.5,4020.2,12.20803399]
[1758787244968,0.001,4020.5,4020.2,26.70803399]
[1758787245469,0.001,4020.5,4020.2,26.80776112]
[1758787247870,0.001,4020.5,4020.2,26.34356112]
[1758787248246,0.001,4020.5,4020.2,26.11086112]
[1758787249429,0.001,4020.5,4020.2,21.90186112]
[1758787249664,0.4524,4020.5,4020.2,18.10986112]
[1758787249965,0.6903,4020.3,4020.2,21.43716555]
[1758787251269,0.4524,4020.3,4020.2,21.43716555]
[1758787251783,0.001,4020.3,4020.2,21.43716555]
[1758787253064,0.4524,4020.3,4020.2,21.43716555]
[1758787253380,0.4516,4020.3,4020.2,21.43716555]
[1758787254647,0.0002,4020.3,4020.2,21.43716555]
[1758787254852,0.6895,4020.3,4020.2,21.31316555]
[1758787255711,0.0002,4020.3,4020.2,21.31316555]
[1758787255863,0.0002,4020.3,4020.2,25.3173517]
[1758787256067,0.0002,4020.3,4020.2,28.3173517]
[1758787256387,0.0002,4020.3,4020.2,27.8531517]
[1758787256758,0.0002,4020.3,4020.2,27.6204517]
[1758787257886,0.0002,4020.7,4020.6,2.50599095]
[1758787258069,0.0002,4020.7,4020.6,6.70799095]
[1758787258593,0.0002,4020.7,4020.6,7.39119005]
[1758787258755,0.0002,4020.7,4020.6,21.89119005]
[1758787259083,0.0002,4020.7,4020.6,22.60049005]
[1758787259669,0.4516,4020.7,4020.6,22.60049005]
[1758787260595,0.6895,4020.7,4020.6,21.91729095]
[1758787261104,0.4516,4020.7,4020.6,21.91729095]
[1758787261270,0.0002,4020.7,4020.6,21.91729095]
[1758787262002,0.0002,4020.7,4020.6,17.71529095]
[1758787262204,0.6895,4020.7,4020.6,21.91529095]
[1758787262391,0.0002,4020.7,4020.6,25.0985771]
[1758787262707,0.0002,4020.7,4020.6,25.7933771]
[1758787263271,0.0002,4020.7,4020.6,25.0985771]
[1758787263467,0.0002,4020.7,4020.6,20.8985771]
[1758787263713,0.0002,4020.7,4020.6,21.91229095]
[1758787264009,0.4467,4020.7,4020.6,21.91229095]
[1758787264197,0.6767,4020.7,4020.6,21.91229095]
[1758787264592,0.4467,4020.7,4020.6,15.22809999]
[1758787264781,0.4467,4020.7,4020.6,15.2093]
[1758787264782,13.06758433,4020.7,4020.6,15.2093]
[1758787264977,16.06758433,4020.7,4020.6,15.2093]
[1758787265281,16.06758433,4020.7,4020.6,14.5]
[1758787265477,16.07789435,4020.7,4020.6,14.5]
[1758787265683,3.6767,4020.7,4020.6,14.5]
[1758787267115,0.6767,4020.7,4020.6,14.5]
[1758787268919,0.6767,4020.7,4020.1,0.01879999]
[1758787268920,3.0,4020.6,4020.1,0.01879999]
[1758787269080,2.48725413,4020.5,4019.9,0.002]
[1758787269280,3.0,4020.6,4019.9,0.002]
[1758787269485,42.986234,4020.0,4019.9,0.002]
[1758787269698,45.059234,4020.0,4019.9,0.002]
[1758787269911,45.735734,4020.0,4019.9,0.002]
[1758787270076,46.12603184,4020.0,4019.9,0.002]
[1758787270806,45.735734,4020.0,4019.9,0.002]
[1758787271148,46.527734,4020.0,4019.9,0.002]
[1758787271556,3.27987162,4019.5,4019.4,0.002]
[1758787271856,50.05354344,4019.5,4019.4,0.002]
[1758787272152,50.73344344,4019.5,4019.4,0.002]
[1758787272555,44.45844344,4019.5,4019.4,0.002]
[1758787273663,6.16777162,4019.5,4019.4,0.002]
[1758787273834,3.14324397,4019.5,4019.4,0.002]
[1758787274165,10.10774397,4019.5,4019.4,0.002]
[1758787274322,10.34524397,4019.5,4019.4,0.002]
[1758787275160,50.33178741,4019.5,4019.4,0.002]
[1758787276082,44.05678741,4019.5,4019.4,0.002]
[1758787276231,5.46334397,4019.5,4019.4,0.002]
[1758787276429,9.67134397,4019.5,4019.4,0.002]
[1758787276633,12.60161559,4019.5,4019.4,0.002]
[1758787276830,12.83911559,4019.5,4019.4,0.002]
[1758787277661,10.11374397,4019.5,4019.4,0.002]
[1758787277865,7.11374397,4019.5,4019.4,0.002]
[1758787278077,9.60161559,4019.5,4019.4,0.002]
[1758787278287,0.83274397,4019.5,4019.4,0.002]
[1758787278573,0.38954397,4019.5,4019.4,0.2412]
[1758787278732,0.38954397,4019.5,4019.4,3.18433352]
[1758787278930,0.38954397,4019.5,4019.4,15.1964]
[1758787279160,0.38954397,4019.5,4019.4,17.68433352]
[1758787279565,0.38954397,4019.5,4019.4,19.70156815]
[1758787280260,2.074,4019.9,4019.8,2.48768595]
[1758787280643,0.0002,4020.7,4019.8,0.6944]
[1758787280844,4.21,4020.6,4020.3,2.48736181]
[1758787281369,4.21,4020.6,4020.4,14.5]
[1758787282548,4.21,4020.6,4019.4,0.002]
[1758787282549,0.6799,4020.5,4019.4,0.002]
[1758787282736,3.0,4020.3,4019.4,2.48993012]
[1758787282932,0.001,4019.9,4019.4,0.002]
[1758787283148,0.001,4019.9,4019.5,14.7392]
[1758787283349,0.001,4019.9,4019.8,2.48768595]
[1758787284068,0.001,4019.9,4019.8,16.98768595]
[1758787284369,0.39122401,4019.9,4019.8,16.98768595]
[1758787284666,0.39122401,4019.9,4019.8,14.5]
[1758787284866,0.39122401,4019.9,4019.8,16.98768595]
[1758787285437,0.39122401,4019.9,4019.8,18.44933876]
[1758787285632,0.001,4019.9,4019.8,18.44933876]
[1758787288060,0.001,4019.9,4019.8,23.45033876]
[1758787288265,0.001,4019.9,4019.8,23.57433876]
[1758787291655,0.001,4019.9,4019.8,26.57433876]
[1758787293990,0.001,4020.4,4020.3,2.48737656]
[1758787294184,0.001,4020.4,4020.3,7.19263954]
[1758787294380,0.001,4020.4,4020.3,7.19063954]
[1758787294886,0.001,4020.4,4020.3,21.69063954]
[1758787295054,0.001,4020.4,4020.3,16.98737656]
[1758787295254,0.001,4020.4,4020.3,14.5]
[1758787295255,0.6809,4020.4,4020.3,14.5]
[1758787295560,0.6809,4020.4,4020.3,16.98737656]
[1758787295751,0.4434,4020.4,4020.3,16.98737656]
[1758787295954,0.001,4020.4,4020.3,16.98737656]
[1758787296277,0.001,4020.4,4020.3,20.05154382]
[1758787296481,0.001,4020.4,4020.3,19.59634382]
[1758787298697,0.001,4020.4,4020.3,19.35714382]
[1758787299896,0.001,4020.4,4020.3,19.37494381]
[1758787300822,0.001,4020.4,4020.3,19.60034381]
[1758787301263,0.001,4020.4,4020.3,20.02834381]
[1758787301800,1e-08,4021.0,4020.9,2.48700539]
[1758787301989,0.001,4021.4,4021.1,3.27888169]
[1758787302190,0.001,4021.4,4021.1,10.5087505]
[1758787302368,0.001,4021.4,4021.1,24.98388169]
[1758787302564,0.001,4021.4,4021.1,25.63728169]
[1758787302904,0.001,4022.4,4021.5,3.27863434]
[1758787303102,0.001,4022.4,4021.5,7.63450068]
[1758787303275,0.001,4022.4,4021.5,8.26303434]
[1758787303473,0.001,4022.4,4021.5,22.76303434]
[1758787303877,0.0002,4021.6,4021.5,22.76303434]
[1758787304200,0.0002,4021.6,4021.5,25.15432049]
[1758787304615,0.001,4022.4,4022.2,3.27820158]
[1758787304792,0.001,4022.4,4022.2,7.48420158]
[1758787304990,0.001,4022.4,4022.2,8.26160158]
[1758787305420,0.001,4022.4,4022.2,22.76160158]
[1758787305620,0.001,4022.4,4022.2,25.15288773]
[1758787306916,0.001,4022.4,4022.2,20.94688773]
[1758787307091,0.001,4022.4,4022.2,27.22488773]
[1758787307421,0.001,4022.4,4022.2,30.22488773]
[1758787308100,0.001,4022.4,4022.2,23.29348773]
[1758787308301,0.001,4022.4,4022.2,21.18920158]
[1758787308521,0.001,4022.4,4022.2,21.53860158]
[1758787308688,0.001,4022.4,4022.2,21.31320158]
[1758787309114,0.001,4022.4,4022.2,17.11020158]
[1758787309283,0.684,4022.3,4022.2,14.5]
[1758787309701,0.684,4022.3,4022.2,18.706]
[1758787309702,1.07397215,4022.3,4022.2,18.706]
[1758787310399,1.07397215,4022.3,4022.2,16.98620158]
[1758787312227,0.39097215,4022.3,4022.2,16.98620158]
[1758787313514,0.82437215,4022.3,4022.2,16.98620158]
[1758787313707,1.07397215,4022.3,4022.2,16.98620158]
[1758787314104,0.82437215,4022.3,4022.2,16.98620158]
[1758787314313,0.684,4022.3,4022.2,21.18920158]
[1758787314708,0.4344,4022.3,4022.2,21.18920158]
[1758787315230,0.001,4022.3,4022.2,21.18920158]
[1758787315527,0.001,4022.3,4022.2,21.69398602]
[1758787315854,0.001,4022.3,4022.2,21.41460158]
[1758787317528,0.4344,4022.3,4022.2,21.19020158]
[1758787317917,0.001,4022.3,4022.2,21.20800157]
[1758787319136,0.001,4022.3,4022.2,21.43340157]
[1758787319947,0.001,4022.3,4022.2,21.20800157]
[1758787320150,0.001,4022.3,4022.2,21.43340157]
[1758787320645,0.001,4022.3,4022.2,23.82468772]
[1758787320819,0.001,4022.3,4022.2,25.04468772]
[1758787321612,0.02,4022.9,4022.8,3.27783076]
[1758787321838,0.02,4022.9,4022.8,9.57568906]
[1758787322049,0.02,4022.9,4022.8,2.60983076]
[1758787322212,0.4534,4022.9,4022.8,2.48583076]
[1758787322414,0.703,4022.9,4022.8,4.203]
[1758787323028,1.09293863,4022.9,4022.8,4.203]
[1758787323312,0.40993863,4022.9,4022.8,6.68883076]
[1758787323513,0.02,4023.9,4022.8,6.68883076]
[1758787323514,1e-08,4023.9,4022.8,6.1475565]
[1758787323717,1e-08,4023.9,4023.8,34.61180772]
[1758787324113,1e-08,4023.9,4023.8,12.82551298]
[1758787324316,1e-08,4023.9,4023.8,7.52021298]
[1758787324554,1e-08,4023.9,4023.8,9.59221298]
[1758787325557,1e-08,4023.9,4023.8,3.27721298]
[1758787325734,1e-08,4023.9,4023.8,9.59221298]
[1758787327361,1e-08,4023.9,4023.8,10.79896367]
[1758787327667,1e-08,4023.9,4023.8,10.00496367]
[1758787328233,1e-08,4023.9,4023.8,24.50496367]
[1758787328766,1e-08,4023.9,4023.8,24.52276366]
[1758787328961,1e-08,4023.9,4023.8,18.21076366]
[1758787329174,1e-08,4023.9,4023.8,16.98521298]
[1758787329482,1e-08,4023.9,4023.8,18.739]
[1758787329483,0.71550001,4023.9,4023.8,18.739]
[1758787329970,0.71550001,4023.9,4023.8,21.22421298]
[1758787330142,0.71550001,4023.9,4023.8,18.739]
[1758787330463,0.71550001,4023.9,4023.8,21.22421298]
[1758787330898,0.46640001,4023.9,4023.8,21.22421298]
[1758787331043,0.38981377,4024.0,4023.9,2.48515122]
[1758787331443,0.38981377,4024.0,4023.9,2.51000273]
[1758787331635,0.2303,4024.2,4024.1,2.4850277]
[1758787331837,0.6635,4024.1,4024.0,4.237]
[1758787332162,0.6635,4024.1,4024.0,6.72208946]
[1758787332771,0.2303,4024.4,4024.3,2.4849042]
[1758787333069,0.4332,4024.6,4024.5,2.48478071]
[1758787333280,0.6635,4024.6,4024.5,2.48478071]
[1758787333583,0.6635,4024.6,4024.2,2.48492104]
[1758787333780,0.6635,4024.5,4024.2,2.48492104]
[1758787334081,0.6635,4024.5,4024.1,2.48501859]
[1758787334362,0.6635,4024.4,4024.0,6.7220723]
[1758787334578,0.6635,4024.3,4023.8,18.736]
[1758787334798,0.6635,4024.2,4023.8,21.22117]
[1758787335005,0.38979907,4024.2,4024.1,2.4850277]
[1758787335154,0.38979907,4024.2,4024.1,6.7220277]
[1758787335880,1.05329907,4024.2,4024.1,6.7220277]
[1758787336054,0.38979907,4024.2,4024.1,6.7220277]
[1758787336692,0.2303,4024.6,4024.5,2.48478071]
[1758787336892,0.2503,4024.9,4024.5,2.48478071]
[1758787337080,0.2303,4024.8,4024.6,2.48470133]
[1758787337286,0.4332,4024.7,4024.6,2.48470133]
[1758787337488,0.6635,4024.7,4024.3,6.7208817]
[1758787337683,0.38976407,4024.8,4024.3,6.7208817]
[1758787337991,0.6635,4024.7,4024.4,2.48484246]
[1758787338299,0.6635,4024.6,4024.5,2.48478071]
[1758787338499,0.38976407,4024.8,4024.7,2.48465724]
[1758787338998,0.38976407,4024.8,4024.7,16.98465724]
[1758787340573,0.38976407,4024.8,4024.7,19.60584339]
[1758787340969,0.39076407,4024.8,4024.7,19.37594339]
[1758787341278,0.39076407,4024.8,4024.7,17.21455724]
[1758787342169,0.39076407,4024.8,4024.7,16.98465724]
[1758787342370,0.39076407,4024.8,4024.7,21.21965724]
[1758787342803,0.39076407,4024.8,4024.7,21.44955724]
[1758787343020,0.001,4024.8,4024.7,21.44955724]
[1758787344014,0.001,4025.3,4024.7,25.08804339]
[1758787344199,0.001,4025.3,4025.2,3.2763486]
[1758787344426,0.001,4025.3,4025.2,3.30119208]
[1758787344717,0.001,4025.3,4025.2,24.8954486]
[1758787345218,0.02,4026.9,4026.8,2.48336147]
[1758787345390,0.02,4026.9,4026.8,6.72336147]
[1758787345578,0.4532,4026.9,4026.8,2.48336147]
[1758787345780,0.6835,4026.9,4026.8,2.48336147]
[1758787346004,0.6835,4026.9,4026.8,16.98336147]
[1758787346609,0.4532,4026.9,4026.8,16.98336147]
[1758787347431,0.4532,4026.9,4026.8,14.5]
[1758787347432,0.6835,4026.9,4026.8,14.5]
[1758787349712,3.6835,4026.9,4026.8,14.5]
[1758787349912,6.1667998,4026.9,4026.8,14.5]
[1758787351702,3.6835,4026.9,4026.8,14.5]
[1758787352309,3.16680566,4026.9,4025.9,2.48386887]
[1758787352614,0.6635,4026.8,4026.1,2.48378199]
[1758787352818,0.6635,4026.7,4026.3,14.5]
[1758787353037,0.02,4026.9,4026.3,14.5]
[1758787353243,3.0,4026.7,4026.3,14.5]
[1758787353454,0.6635,4026.6,4026.3,14.5]
[1758787353599,0.4332,4026.5,4026.3,14.5]
[1758787354097,0.6635,4026.4,4026.3,14.5]
[1758787354293,0.4332,4026.4,4026.3,14.5]
[1758787354704,3.79126327,4026.7,4026.3,14.5]
[1758787354931,0.4332,4026.6,4026.3,14.5]
[1758787355232,0.4332,4026.6,4026.3,16.98364872]
[1758787355553,2.9992,4026.7,4026.3,14.5]
[1758787355832,0.02,4026.9,4026.4,0.2299]
[1758787356008,0.02,4026.9,4026.4,4.9171]
[1758787356198,0.02,4026.9,4026.8,2.48336147]
[1758787356825,0.02,4026.9,4026.3,14.5]
[1758787357026,0.4532,4026.9,4026.5,2.48348787]
[1758787357247,0.84276825,4026.9,4026.6,2.48347219]
[1758787357408,0.40956825,4026.9,4026.7,2.48342258]
[1758787357607,0.40956825,4026.9,4026.6,2.48347459]
[1758787358109,0.84276825,4026.9,4026.6,2.48347459]
[1758787358449,0.4332,4026.8,4026.3,16.98365732]
[1758787358632,0.4332,4026.7,4026.3,14.5]
[1758787358810,0.40956825,4026.9,4026.3,14.5]
[1758787359011,0.40956825,4026.9,4026.4,4.94193608]
[1758787359213,0.41056825,4026.9,4026.8,2.48336147]
[1758787359705,0.41056825,4026.9,4026.8,17.69329508]
[1758787359939,0.41056825,4026.9,4026.8,20.05974762]
[1758787361111,0.021,4026.9,4026.8,20.05974762]
[1758787361719,0.021,4026.9,4026.8,19.37464762]
[1758787361919,0.021,4026.9,4026.8,21.21536147]
[1758787362120,0.021,4026.9,4026.8,14.5]
[1758787362325,0.021,4026.9,4026.8,18.733]
[1758787362944,0.021,4026.9,4026.8,21.21636147]
[1758787363122,0.021,4026.9,4026.8,18.733]
[1758787363323,0.021,4026.9,4026.8,14.5]
[1758787363622,0.4838,4026.9,4026.8,14.5]
[1758787364046,0.021,4026.9,4026.8,14.5]
[1758787364212,0.021,4026.9,4026.8,21.89006147]
[1758787364649,0.021,4026.9,4026.8,23.53604413]
[1758787367672,0.021,4026.9,4026.8,21.46216147]
[1758787367877,0.021,4026.9,4026.8,21.21636147]
[1758787368245,0.021,4026.9,4026.8,16.98336147]
[1758787368648,0.021,4026.9,4026.8,21.21336147]
[1758787370340,0.021,4026.9,4026.8,21.88906147]
[1758787370543,0.001,4027.4,4027.3,2.48305316]
[1758787370880,0.001,4027.4,4027.3,6.71505316]
[1758787371078,0.001,4027.4,4027.3,7.39075316]
[1758787371380,0.001,4027.4,4027.3,21.89075316]
[1758787371775,0.001,4027.4,4027.3,22.68275316]
[1758787372075,0.001,4027.4,4027.3,25.19803931]
[1758787374772,0.001,4027.4,4027.3,19.37433931]
[1758787374972,0.001,4027.4,4027.3,23.28405316]
[1758787375172,0.001,4027.4,4027.3,23.52985316]
[1758787375373,0.001,4027.4,4027.3,23.95975316]
[1758787376387,0.001,4027.4,4027.3,23.52985316]
[1758787376883,0.001,4027.4,4027.3,21.45885316]
[1758787377263,0.001,4027.4,4027.3,23.85013931]
[1758787379184,0.001,4027.4,4027.3,23.60433931]
[1758787379370,0.001,4027.4,4027.3,21.21305316]
[1758787379567,0.001,4027.4,4027.3,16.98305316]
[1758787379797,0.001,4027.4,4027.3,14.5]
[1758787380002,0.4638,4027.4,4027.3,21.21005316]
[1758787380203,0.4638,4027.4,4027.3,18.727]
[1758787380504,0.0002,4027.4,4027.3,21.21005316]
[1758787380868,0.0002,4027.4,4027.3,23.21334067]
[1758787381266,0.0002,4027.4,4027.3,24.00534067]
[1758787383541,0.0002,4027.4,4027.3,19.77834067]
[1758787383706,0.0002,4027.4,4027.3,26.07434067]
[1758787383872,0.0002,4027.4,4027.3,19.77834067]
[1758787384184,0.0002,4027.4,4027.3,26.07334067]
[1758787384701,0.0002,4027.4,4027.3,26.07234067]
[1758787384870,0.0002,4027.4,4027.3,26.19634067]
[1758787385692,0.0002,4027.4,4027.3,25.76644067]
[1758787386105,0.0002,4027.4,4027.3,25.76794067]
[1758787387015,0.0002,4027.4,4027.3,25.76594067]
[1758787387379,0.0002,4027.4,4027.3,26.20954067]
[1758787389900,0.6953,4029.2,4027.6,0.792]
[1758787390076,0.6953,4029.2,4028.8,2.48212867]
[1758787390282,0.6953,4029.2,4028.8,6.70412867]
[1758787390516,0.4808,4028.9,4028.8,6.70412867]
[1758787390692,0.4808,4028.9,4028.8,21.20412867]
[1758787392321,0.7258,4028.9,4028.8,21.20412867]
[1758787392626,0.4808,4028.9,4028.8,21.20412867]
[1758787394004,0.7258,4028.9,4028.8,21.20412867]
[1758787394409,1.11514658,4028.9,4028.8,21.20412867]
[1758787396134,1.11614658,4028.9,4028.8,21.20412867]
[1758787400309,1.11614658,4028.9,4028.8,18.722]
[1758787400633,0.39034658,4028.9,4028.8,21.20412867]
[1758787401113,0.39034658,4028.9,4028.8,18.722]
[1758787401317,0.39034658,4028.9,4028.8,21.20412867]
[1758787401489,0.39034658,4028.9,4028.8,18.71]
[1758787401694,0.001,4028.9,4028.8,14.5]
[1758787401895,0.001,4028.9,4028.8,18.71]
[1758787402128,0.001,4028.9,4028.8,14.5]
[1758787402724,0.5816,4028.9,4028.8,14.5]
[1758787405018,0.39037021,4028.9,4028.8,14.5]
[1758787405529,0.39037021,4028.9,4028.8,16.98212867]
[1758787405724,0.38957021,4028.9,4028.8,16.98212867]
[1758787407011,0.97017021,4028.9,4028.8,16.98212867]
[1758787407207,0.97017021,4028.9,4028.8,14.5]
[1758787407413,0.97017021,4028.9,4028.8,16.98212867]
[1758787407731,0.86407021,4028.9,4028.8,14.5]
[1758787408297,0.86407021,4028.9,4028.8,13.5]
[1758787408534,0.97017021,4028.9,4027.8,0.2264]
[1758787408732,0.97017021,4028.9,4028.4,2.48236494]
[1758787408733,0.1061,4028.8,4028.4,2.48236494]
[1758787409037,0.5806,4028.8,4028.3,4.212]
[1758787409202,0.5806,4028.8,4028.5,14.5]
[1758787409404,0.4745,4028.7,4028.6,2.48225189]
[1758787410329,0.38957021,4028.9,4028.7,2.48213238]
[1758787410520,0.86407021,4028.9,4028.6,2.48224201]
[1758787410928,0.4745,4028.8,4028.5,14.5]
[1758787411123,0.4745,4028.8,4028.6,2.48221296]
[1758787411326,0.4745,4028.8,4028.7,2.48219028]
[1758787411513,0.4745,4028.8,4028.6,2.48222952]
[1758787412238,0.0002,4028.9,4028.8,2.48212867]
[1758787414048,0.0002,4028.9,4028.8,7.36062867]
[1758787414212,0.0002,4028.9,4028.8,8.34739842]
[1758787414607,0.0002,4028.9,4028.8,21.86062867]
[1758787415746,0.0002,4028.9,4028.8,21.41852867]
[1758787416040,0.0002,4028.9,4028.8,21.86062867]
[1758787416544,0.0002,4028.9,4028.8,21.41852867]
[1758787416741,0.0002,4028.9,4028.8,21.19212867]
[1758787417536,0.0002,4028.9,4028.8,14.5]
[1758787417844,0.0002,4028.9,4028.8,21.18912867]
[1758787418147,0.0002,4028.9,4028.8,17.65062867]
[1758787420024,0.0002,4028.9,4028.8,17.20852867]
[1758787420615,0.0002,4028.9,4028.8,16.98212867]
[1758787421642,0.0002,4028.9,4028.8,17.21732867]
[1758787421976,0.0002,4028.9,4028.8,20.05841482]
[1758787422382,0.0002,4028.9,4028.8,17.66712867]
[1758787423744,0.0002,4028.9,4028.8,17.21732867]
[1758787425183,0.0002,4028.9,4028.8,16.98212867]
[1758787425678,0.0002,4028.9,4028.8,21.18512867]
[1758787425679,12.34775061,4028.9,4028.8,21.18512867]
[1758787426066,12.80745061,4028.9,4028.8,18.702]
[1758787426386,12.80745061,4028.9,4028.8,14.5]
[1758787426547,12.80745061,4028.9,4028.8,18.701]
[1758787426548,12.34775061,4028.9,4028.8,18.701]
[1758787426743,12.34775061,4028.9,4028.8,14.5]
[1758787426947,12.91355061,4028.9,4028.8,14.5]
[1758787427158,0.566,4028.9,4028.8,14.5]
[1758787427392,3.4599,4028.9,4028.8,14.5]
[1758787427685,3.0002,4028.9,4028.8,16.98212867]
[1758787428085,0.0002,4028.9,4028.8,21.18312867]
[1758787428258,0.0002,4028.9,4028.8,21.86812867]
[1758787428695,0.0002,4028.9,4028.8,24.09832704]
[1758787430104,0.0002,4028.9,4028.8,24.10032704]
[1758787430314,0.0002,4028.9,4028.8,16.98212867]
[1758787430515,0.0002,4028.9,4028.8,21.18512867]
[1758787431005,0.0002,4028.9,4028.8,21.42032867]
[1758787431204,12.34695061,4029.1,4029.0,2.48200546]
[1758787431507,15.34755061,4029.3,4029.2,2.48188225]
[1758787433710,15.34755061,4029.3,4029.2,6.68588225]
[1758787434813,15.34755061,4029.3,4028.8,14.7372]
[1758787435018,15.34755061,4029.3,4028.9,4.201]
[1758787435019,12.34755061,4029.1,4028.9,4.201]
[1758787435306,3.0,4029.1,4029.0,2.48200546]
[1758787435510,3.0,4029.1,4029.0,16.98200546]
[1758787436622,3.0,4029.1,4029.0,17.21720546]
[1758787437421,0.001,4029.3,4029.2,2.48188225]
[1758787437620,0.001,4029.3,4029.2,6.68088225]
[1758787437822,0.001,4029.3,4029.2,6.91608225]
[1758787437994,0.001,4029.3,4029.2,2.71708225]
[1758787438318,0.001,4029.3,4029.2,6.91608225]
[1758787438489,3.001,4029.3,4029.2,6.68088225]
[1758787440905,3.001,4029.3,4029.2,2.48188225]
[1758787441231,0.001,4029.3,4029.2,7.36288225]
[1758787441407,4.207,4031.1,4029.8,2.48151273]
[1758787441590,4.207,4031.1,4029.8,6.71332785]
[1758787441923,12.34755061,4030.4,4029.8,21.86961273]
[1758787442115,12.34755061,4030.0,4029.8,21.86961273]
[1758787442426,12.34755061,4030.2,4029.8,21.86961273]
[1758787442625,14.43915314,4030.3,4029.8,21.42461273]
[1758787443122,14.43915314,4030.0,4029.8,18.706]
[1758787443423,0.4676,4030.2,4029.8,21.18751273]
[1758787443846,0.4676,4030.2,4029.8,18.706]
[1758787444049,0.4676,4030.2,4029.8,21.18751273]
[1758787444431,14.43915314,4030.0,4029.8,18.706]
[1758787444746,0.02,4030.9,4029.8,20.82475225]
[1758787445045,0.02,4030.9,4030.8,2.48089709]
[1758787445246,0.02,4030.9,4030.8,6.71289709]
[1758787445434,0.02,4030.9,4030.8,21.21289709]
[1758787445631,0.023,4031.9,4030.8,21.91888734]
[1758787445818,0.023,4031.9,4031.8,16.9194349]
[1758787446018,0.032,4032.9,4031.8,16.9194349]
[1758787446019,0.032,4032.9,4032.8,2.47966673]
[1758787446219,0.032,4032.9,4032.8,21.21966673]
[1758787446541,0.032,4032.9,4032.8,21.90076673]
[1758787446748,0.032,4032.9,4032.8,21.45576673]
[1758787447710,0.032,4032.9,4032.8,14.5]
[1758787447915,0.6057,4032.9,4032.8,14.5]
[1758787449230,1.3977,4032.9,4032.8,14.5]
[1758787450446,1.78668248,4032.9,4032.8,14.5]
[1758787451020,7.26628772,4032.9,4032.8,14.5]
[1758787451248,4.78668248,4032.9,4032.8,14.5]
[1758787452051,0.792,4032.7,4032.0,4.236]
[1758787452354,3.792,4032.5,4032.0,6.7161124]
[1758787452560,3.792,4032.5,4032.1,16.98009019]
[1758787452765,0.792,4032.7,4032.1,16.98009019]
[1758787452971,0.38901501,4032.5,4032.1,18.735]
[1758787453252,0.38901501,4032.5,4032.2,4.234]
[1758787453826,0.38901501,4032.5,4032.4,2.4799127]
[1758787454335,0.033,4032.9,4032.8,2.47966673]
[1758787454655,0.033,4032.9,4032.8,7.51596673]
[1758787454856,0.033,4032.9,4032.8,22.01596673]
[1758787455058,1e-08,4032.9,4032.8,22.01596673]
[1758787455359,1e-08,4032.9,4032.8,24.40725288]
[1758787456023,1e-08,4032.9,4032.8,20.16725288]
[1758787456349,1e-08,4032.9,4032.8,26.49025288]
[1758787456551,0.02220001,4033.9,4032.8,17.56438615]
[1758787456866,0.02220001,4033.9,4033.2,2.4794208]
[1758787457065,0.02220001,4033.9,4033.2,2.47941344]
[1758787457268,0.02220001,4033.9,4033.8,14.5]
[1758787458651,0.02220001,4033.9,4033.8,21.47625201]
[1758787458960,0.02220001,4033.9,4033.8,24.09735201]
[1758787459526,0.02220001,4033.9,4033.8,17.77535201]
[1758787459733,0.02220001,4033.9,4033.8,22.03135201]
[1758787459939,0.02220001,4033.9,4033.8,24.42263816]
[1758787460268,0.02,4034.9,4034.8,2.47843759]
[1758787460452,0.02,4034.9,4034.8,8.80143759]
[1758787460788,1e-08,4034.9,4034.8,9.59773759]